fUST/lending_fUST_20250913
["ID","MTS","AMOUNT","RATE_DAILY","PERIOD"]
[385304937,1757755919664,-496.53173441,0.00028219,3]
[385304938,1757755919673,-480.0,0.00028219,3]
[385304939,1757755919682,-480.0,0.00028219,3]
[385304940,1757755919692,-480.0,0.00028219,3]
[385304941,1757755919702,-480.0,0.00028219,3]
[385304942,1757755919711,-579.16257031,0.00028219,3]
[385304943,1757755919720,-480.0,0.00028219,3]
[385304944,1757755919731,-480.0,0.00028219,3]
[385304945,1757755919740,-480.0,0.00028219,3]
[385304946,1757755919749,-480.0,0.00028219,3]
[385304947,1757755919759,-728.96,0.00028219,3]
[385304948,1757755919768,-538.70873011,0.00028219,3]
[385304949,1757755919779,-480.0,0.00028219,3]
[385304950,1757755919788,-480.0,0.00028219,3]
[385304951,1757755919798,-508.85,0.00028219,3]
[385304952,1757755919807,-503.64,0.00028219,3]
[385304953,1757755919816,-886.0,0.00028219,3]
[385304954,1757755919825,-480.0,0.00028219,3]
[385304955,1757755919835,-480.0,0.00028219,3]
[385304956,1757755919845,-605.6,0.00028219,3]
[385304957,1757755919854,-480.0,0.00028219,3]
[385304958,1757755919864,-1273.7,0.00028219,3]
[385304959,1757755919874,-576.34,0.00028219,3]
[385304960,1757755919883,-480.0,0.00028219,3]
[385304961,1757755919893,-480.0,0.00028219,3]
[385304962,1757755919903,-480.0,0.00028219,3]
[385304963,1757755919913,-480.0,0.00028219,3]
[385304964,1757755919923,-480.0,0.00028219,3]
[385304965,1757755919932,-531.61,0.00028219,3]
[385304966,1757755919941,-576.19,0.00028219,3]
[385304967,1757755919951,-322.06441187,0.00028219,3]
[385304968,1757755919960,-250.94911591,0.00028219,3]
[385304969,1757755919969,-480.0,0.00028219,3]
[385304970,1757755919977,-480.0,0.00028219,3]
[385304971,1757755919986,-489.71,0.00028219,3]
[385304972,1757755919995,-1700.77,0.00028219,3]
[385304973,1757755920005,-480.0,0.00028219,3]
[385304974,1757755920014,-683.52,0.00028219,3]
[385304975,1757755920023,-532.68,0.00028219,3]
[385304976,1757755920032,-877.42,0.00028219,3]
[385304977,1757755920042,-480.0,0.00028219,3]
[385304978,1757755920051,-2036.55,0.00028219,3]
[385304979,1757755920061,-480.0,0.00028219,3]
[385304980,1757755920071,-480.0,0.00028219,3]
[385304981,1757755920081,-675.8,0.00028219,3]
[385304982,1757755920090,-480.0,0.00028219,3]
[385304983,1757755920099,-1092.94,0.00028219,3]
[385304984,1757755920108,-864.33,0.00028219,3]
[385304985,1757755920117,-480.0,0.00028219,3]
[385304986,1757755920127,-480.0,0.00028219,3]
[385304987,1757755920137,-480.0,0.00028219,3]
[385304988,1757755920146,-480.0,0.00028219,3]
[385304989,1757755920155,-7300.91,0.00028219,3]
[385304990,1757755920164,-480.0,0.00028219,3]
[385304991,1757755920173,-480.0,0.00028219,3]
[385304992,1757755920182,-1623.88,0.00028219,3]
[385304993,1757755920191,-480.0,0.00028219,3]
[385304994,1757755920201,-1080.81,0.00028219,3]
[385304995,1757755920211,-480.0,0.00028219,3]
[385304996,1757755920220,-480.0,0.00028219,3]
[385304997,1757755920231,-480.0,0.00028219,3]
[385304998,1757755920240,-480.0,0.00028219,3]
[385304999,1757755920249,-480.0,0.00028219,3]
[385305000,1757755920258,-480.0,0.00028219,3]
[385305001,1757755920271,-480.0,0.00028219,3]
[385305002,1757755920280,-455.47848742,0.00028219,3]
[385305003,1757755920289,-480.0,0.00028219,3]
[385305004,1757755920299,-586.32,0.00028219,3]
[385305005,1757755920310,-480.0,0.00028219,3]
[385305006,1757755920319,-866.22,0.00028219,3]
[385305007,1757755920329,-585.1,0.00028219,3]
[385305008,1757755920339,-4460.51,0.00028219,3]
[385305009,1757755920348,-774.68,0.00028219,3]
[385305010,1757755920357,-480.0,0.00028219,3]
[385305011,1757755920366,-480.0,0.00028219,3]
[385305012,1757755920375,-503.65958634,0.00028219,3]
[385305013,1757755920385,-597.16,0.00028219,3]
[385305014,1757755920395,-11885.11,0.00028219,3]
[385305015,1757755920404,-829.91,0.00028219,3]
[385305016,1757755920413,-646.07,0.00028219,3]
[385305017,1757755920423,-167.98575156,0.00028219,3]
[385305018,1757755920432,-490.24,0.00028219,3]
[385305019,1757755920442,-500.7,0.00028219,3]
[385305020,1757755920451,-891.22,0.00028219,3]
[385305021,1757755920460,-1033.36,0.00028219,3]
[385305022,1757755920470,-534.4,0.00028219,3]
[385305023,1757755920600,-541.98,0.00028219,3]
[385305024,1757755920611,-977.05,0.00028219,3]
[385305025,1757755920620,-681.35,0.00028219,3]
[385305026,1757755920630,-480.0,0.00028219,3]
[385305027,1757755920639,-480.0,0.00028219,3]
[385305028,1757755920648,-480.0,0.00028219,3]
[385305029,1757755920658,-480.0,0.00028219,3]
[385305030,1757755920667,-579.86,0.00028219,3]
[385305031,1757755920676,-480.0,0.00028219,3]
[385305032,1757755920686,-623.12513236,0.00028219,3]
[385305033,1757755920695,-6737.45,0.00028219,3]
[385305034,1757755920705,-2411.48,0.00028219,3]
[385305035,1757755920715,-4800.05,0.00028219,3]
[385305036,1757755920724,-480.0,0.00028219,3]
[385305037,1757755920732,-480.0,0.00028219,3]
[385305038,1757755920742,-1662.72,0.00028219,3]
[385305039,1757755920751,-836.54,0.00028219,3]
[385305040,1757755920761,-1708.68,0.00028219,3]
[385305041,1757755920770,-480.0,0.00028219,3]
[385305042,1757755920780,-619.88,0.00028219,3]
[385305043,1757755920789,-1393.21,0.00028219,3]
[385305044,1757755920799,-1863.52,0.00028219,3]
[385305045,1757755920808,-480.0,0.00028219,3]
[385305046,1757755920817,-1307.29,0.00028219,3]
[385305047,1757755920826,-480.0,0.00028219,3]
[385305048,1757755920836,-480.0,0.00028219,3]
[385305049,1757755920846,-528.66,0.00028219,3]
[385305050,1757755920855,-494.96,0.00028219,3]
[385305051,1757755920865,-1103.37,0.00028219,3]
[385305052,1757755920874,-518.27,0.00028219,3]
[385305053,1757755920883,-480.0,0.00028219,3]
[385305054,1757755920892,-516.82,0.00028219,3]
[385305055,1757755920902,-487.61,0.00028219,3]
[385305056,1757755920911,-832.35,0.00028219,3]
[385305057,1757755920921,-480.0,0.00028219,3]
[385305058,1757755920930,-480.0,0.00028219,3]
[385305059,1757755920939,-480.0,0.00028219,3]
[385305060,1757755920947,-1916.67,0.00028219,3]
[385305061,1757755920957,-489.3601404,0.00028219,3]
[385305062,1757755920966,-659.4,0.00028219,3]
[385305063,1757755920975,-480.0,0.00028219,3]
[385305064,1757755920984,-480.0,0.00028219,3]
[385305065,1757755920994,-480.0,0.00028219,3]
[385305066,1757755921003,-480.0,0.00028219,3]
[385305067,1757755921013,-597.41,0.00028219,3]
[385305068,1757755921023,-480.0,0.00028219,3]
[385305069,1757755921032,-606.7,0.00028219,3]
[385305070,1757755921043,-3205.05,0.00028219,3]
[385305071,1757755921052,-480.0,0.00028219,3]
[385305072,1757755921062,-480.0,0.00028219,3]
[385305073,1757755921071,-480.0,0.00028219,3]
[385305074,1757755921081,-744.12,0.00028219,3]
[385305075,1757755921090,-518.61609883,0.00028219,3]
[385305076,1757755921100,-2631.63,0.00028219,3]
[385305077,1757755921109,-500.0,0.0002822,2]
[385305078,1757755921118,-151.26,0.00028237,15]
[385305079,1757755921127,-3280.3046914,0.0002824,2]
[385305080,1757755921137,-1121.43,0.00028271,15]
[385305081,1757755921146,-500.0,0.000283,2]
[385305082,1757755921155,-500.0,0.000283,2]
[385305083,1757755921164,-500.0,0.000283,2]
[385305084,1757755921174,-500.0,0.000283,2]
[385305085,1757755921183,-3192.81,0.000283,7]
[385305086,1757755921193,-317.58638,0.000283,120]
[385305087,1757755921202,-500.0,0.000283,2]
[385305088,1757755921212,-260.81301056,0.00028302,2]
[385305089,1757755921221,-1485.0575856,0.00028318,2]
[385305090,1757755921230,-154.6121,0.00028323,7]
[385305091,1757755921239,-339.64761388,0.00028327,2]
[385305092,1757755921248,-389.2045971,0.00028329,30]
[385305093,1757755921258,-389.2045971,0.00028329,30]
[385305094,1757755921269,-389.2045971,0.00028329,30]
[385305095,1757755921279,-389.2045971,0.00028329,30]
[385305096,1757755921288,-389.2045971,0.00028329,30]
[385305097,1757755921297,-389.2045971,0.00028329,30]
[385305098,1757755921307,-389.2045971,0.00028329,30]
[385305099,1757755921316,-822.8400322,0.00028329,30]
[385305100,1757755921327,-604.50520267,0.00028337,2]
[385305101,1757755921338,-151.26,0.00028337,15]
[385305102,1757755921348,-1121.43,0.00028371,15]
[385305103,1757755921358,-500.0,0.00028377,2]
[385305104,1757755921368,-804.0,0.0002839,2]
[385305105,1757755921378,-1485.0575856,0.00028418,2]
[385305106,1757755921388,-160.68955871,0.0002843,120]
[385305107,1757755921397,-160.0,0.00028436,5]
[385305108,1757755921406,-151.26,0.00028437,15]
[385305109,1757755921416,-154.6121,0.00028458,2]
[385305110,1757755921425,-1121.43,0.00028471,15]
[385305111,1757755921435,-1035.06,0.00028493,3]
[385305112,1757755921445,-480.0,0.00028493,3]
[385305113,1757755921454,-480.0,0.00028493,3]
[385305114,1757755921463,-480.0,0.00028493,3]
[385305115,1757755921472,-480.0,0.00028493,3]
[385305116,1757755921482,-480.0,0.00028493,3]
[385305117,1757755921491,-480.0,0.00028493,3]
[385305118,1757755921500,-480.0,0.00028493,3]
[385305119,1757755921509,-480.0,0.00028493,3]
[385305120,1757755921518,-480.0,0.00028493,3]
[385305121,1757755921527,-480.0,0.00028493,3]
[385305122,1757755921536,-480.0,0.00028493,3]
[385305123,1757755921546,-480.0,0.00028493,3]
[385305124,1757755921555,-480.0,0.00028493,3]
[385305125,1757755921564,-480.0,0.00028493,3]
[385305126,1757755921573,-480.0,0.00028493,3]
[385305127,1757755921582,-480.0,0.00028493,3]
[385305128,1757755921592,-480.0,0.00028493,3]
[385305129,1757755921601,-480.0,0.00028493,3]
[385305130,1757755921611,-480.0,0.00028493,3]
[385305131,1757755921620,-480.0,0.00028493,3]
[385305132,1757755921630,-480.0,0.00028493,3]
[385305133,1757755921639,-480.0,0.00028493,3]
[385305134,1757755921648,-480.0,0.00028493,3]
[385305135,1757755921657,-448.92122393,0.00028493,3]
[385305136,1757755921667,-480.0,0.00028493,3]
[385305137,1757755921677,-498.51529996,0.00028493,3]
[385305138,1757755921686,-480.0,0.00028493,3]
[385305139,1757755921697,-499.1,0.00028493,3]
[385305140,1757755921706,-480.69,0.00028493,3]
[385305141,1757755921715,-480.0,0.00028493,3]
[385305142,1757755921724,-480.0,0.00028493,3]
[385305143,1757755921734,-480.0,0.00028493,3]
[385305144,1757755921743,-519.58,0.00028493,3]
[385305145,1757755921752,-619.65,0.00028493,3]
[385305146,1757755921762,-480.0,0.00028493,3]
[385305147,1757755921771,-587.99,0.00028493,3]
[385305148,1757755921780,-480.0,0.00028493,3]
[385305149,1757755921789,-523.11,0.00028493,3]
[385305150,1757755921799,-653.04,0.00028493,3]
[385305151,1757755921808,-687.36,0.00028493,3]
[385305152,1757755921818,-480.0,0.00028493,3]
[385305153,1757755921828,-484.0,0.00028493,3]
[385305154,1757755921837,-480.0,0.00028493,3]
[385305155,1757755921846,-523.39,0.00028493,3]
[385305156,1757755921856,-480.0,0.00028493,3]
[385305157,1757755921866,-509.39,0.00028493,3]
[385305158,1757755921876,-480.0,0.00028493,3]
[385305159,1757755921885,-480.0,0.00028493,3]
[385305160,1757755921894,-480.0,0.00028493,3]
[385305161,1757755921903,-480.0,0.00028493,3]
[385305162,1757755921912,-480.0,0.00028493,3]
[385305163,1757755921921,-480.0,0.00028493,3]
[385305164,1757755921930,-480.0,0.00028493,3]
[385305165,1757755921940,-480.0,0.00028493,3]
[385305166,1757755921950,-1336.28,0.00028493,3]
[385305167,1757755921959,-480.0,0.00028493,3]
[385305168,1757755921968,-480.0,0.00028493,3]
[385305169,1757755921977,-480.0,0.00028493,3]
[385305170,1757755921986,-480.0,0.00028493,3]
[385305171,1757755921995,-501.62,0.00028493,3]
[385305172,1757755922006,-480.0,0.00028493,3]
[385305173,1757755922015,-514.0,0.00028493,3]
[385305174,1757755922024,-480.0,0.00028493,3]
[385305175,1757755922034,-480.0,0.00028493,3]
[385305176,1757755922044,-480.0,0.00028493,3]
[385305177,1757755922053,-480.0,0.00028493,3]
[385305178,1757755922062,-537.4,0.00028493,3]
[385305179,1757755922071,-606.47,0.00028493,3]
[385305180,1757755922081,-627.39,0.00028493,3]
[385305181,1757755922090,-480.0,0.00028493,3]
[385305182,1757755922099,-515.6,0.00028493,3]
[385305183,1757755922108,-480.0,0.00028493,3]
[385305184,1757755922118,-480.0,0.00028493,3]
[385305185,1757755922127,-480.0,0.00028493,3]
[385305186,1757755922136,-480.0,0.00028493,3]
[385305187,1757755922146,-657.1,0.00028493,7]
[385305188,1757755922155,-4289.53,0.00028493,3]
[385305189,1757755922164,-480.0,0.00028493,3]
[385305190,1757755922173,-615.59,0.00028493,3]
[385305191,1757755922182,-1017.38,0.00028493,3]
[385305192,1757755922192,-480.0,0.00028493,3]
[385305193,1757755922202,-480.0,0.00028493,3]
[385305194,1757755922211,-480.0,0.00028493,3]
[385305195,1757755922221,-480.0,0.00028493,3]
[385305196,1757755922230,-480.0,0.00028493,3]
[385305197,1757755922239,-480.0,0.00028493,3]
[385305198,1757755922248,-480.0,0.00028493,3]
[385305199,1757755922258,-456.11788938,0.00028493,3]
[385305200,1757755922271,-590.28699907,0.00028493,3]
[385305201,1757755922280,-480.0,0.00028493,3]
[385305202,1757755922289,-158.85651997,0.00028493,3]
[385305203,1757755922299,-480.0,0.00028493,3]
[385305204,1757755922310,-480.0,0.00028493,3]
[385305205,1757755922319,-480.0,0.00028493,3]
[385305206,1757755922329,-531.5029065,0.00028493,3]
[385305207,1757755922339,-518.65313071,0.00028493,3]
[385305208,1757755922349,-480.0,0.00028493,3]
[385305209,1757755922358,-480.0,0.00028493,3]
[385305210,1757755922367,-480.0,0.00028493,3]
[385305211,1757755922376,-488.07510038,0.00028493,3]
[385305212,1757755922385,-480.0,0.00028493,3]
[385305213,1757755922394,-480.0,0.00028493,3]
[385305214,1757755922403,-485.55,0.00028493,3]
[385305215,1757755922412,-480.0,0.00028493,3]
[385305216,1757755922421,-360.21005328,0.00028493,3]
[385305217,1757755922430,-480.0,0.00028493,3]
[385305218,1757755922440,-505.27,0.00028493,3]
[385305219,1757755922449,-545.7090781,0.00028493,3]
[385305220,1757755922459,-480.0,0.00028493,3]
[385305221,1757755922469,-480.0,0.00028493,3]
[385305222,1757755922478,-480.0,0.00028493,3]
[385305223,1757755922487,-480.0,0.00028493,3]
[385305224,1757755922497,-480.0,0.00028493,3]
[385305225,1757755922506,-480.0,0.00028493,3]
[385305226,1757755922515,-480.0,0.00028493,3]
[385305227,1757755922524,-728.96,0.00028493,3]
[385305228,1757755922534,-480.0,0.00028493,3]
[385305229,1757755922544,-480.0,0.00028493,3]
[385305230,1757755922553,-508.85,0.00028493,3]
[385305231,1757755922563,-503.64,0.00028493,3]
[385305232,1757755922571,-886.0,0.00028493,3]
[385305233,1757755922580,-480.0,0.00028493,3]
[385305234,1757755922590,-480.0,0.00028493,3]
[385305235,1757755922599,-605.6,0.00028493,3]
[385305236,1757755922608,-480.0,0.00028493,3]
[385305237,1757755922617,-1273.7,0.00028493,3]
[385305238,1757755922627,-576.34,0.00028493,3]
[385305239,1757755922636,-480.0,0.00028493,3]
[385305240,1757755922646,-480.0,0.00028493,3]
[385305241,1757755922655,-480.0,0.00028493,3]
[385305242,1757755922664,-480.0,0.00028493,3]
[385305243,1757755922673,-480.0,0.00028493,3]
[385305244,1757755922683,-531.61,0.00028493,3]
[385305245,1757755922698,-576.19,0.00028493,3]
[385305246,1757755922708,-480.0,0.00028493,3]
[385305247,1757755922718,-489.71,0.00028493,3]
[385305248,1757755922727,-1700.77,0.00028493,3]
[385305249,1757755922736,-480.0,0.00028493,3]
[385305250,1757755922745,-683.52,0.00028493,3]
[385305251,1757755922755,-532.68,0.00028493,3]
[385305252,1757755922764,-877.42,0.00028493,3]
[385305253,1757755922774,-487.31685101,0.00028493,3]
[385305254,1757755922783,-2036.55,0.00028493,3]
[385305255,1757755922913,-480.0,0.00028493,3]
[385305256,1757755922923,-480.0,0.00028493,3]
[385305257,1757755922932,-675.8,0.00028493,3]
[385305258,1757755922943,-480.0,0.00028493,3]
[385305259,1757755922953,-1092.94,0.00028493,3]
[385305260,1757755922962,-864.33,0.00028493,3]
[385305261,1757755922972,-320.56131991,0.00028493,3]
[385305262,1757755922982,-480.0,0.00028493,3]
[385305263,1757755922992,-480.0,0.00028493,3]
[385305264,1757755923002,-480.0,0.00028493,3]
[385305265,1757755923012,-7300.91,0.00028493,3]
[385305266,1757755923022,-480.0,0.00028493,3]
[385305267,1757755923031,-458.25042549,0.00028493,3]
[385305268,1757755923041,-1623.88,0.00028493,3]
[385305269,1757755923051,-480.0,0.00028493,3]
[385305270,1757755923062,-1080.81,0.00028493,3]
[385305271,1757755923072,-480.0,0.00028493,3]
[385305272,1757755923083,-480.0,0.00028493,3]
[385305273,1757755923093,-480.0,0.00028493,3]
[385305274,1757755923103,-480.0,0.00028493,3]
[385305275,1757755923113,-165.58503303,0.00028493,3]
[385305276,1757755923123,-258.28076863,0.00028493,3]
[385305277,1757755923134,-456.26999802,0.00028493,3]
[385305278,1757755923144,-480.0,0.00028493,3]
[385305279,1757755923155,-586.32,0.00028493,3]
[385305280,1757755923166,-488.54703792,0.00028493,3]
[385305281,1757755923177,-866.22,0.00028493,3]
[385305282,1757755923188,-585.1,0.00028493,3]
[385305283,1757755923198,-4460.51,0.00028493,3]
[385305284,1757755923208,-774.68,0.00028493,3]
[385305285,1757755923218,-480.0,0.00028493,3]
[385305286,1757755923228,-499.32557561,0.00028493,3]
[385305287,1757755923238,-597.16,0.00028493,3]
[385305288,1757755923248,-11885.11,0.00028493,3]
[385305289,1757755923260,-829.91,0.00028493,3]
[385305290,1757755923270,-646.07,0.00028493,3]
[385305291,1757755923279,-490.24,0.00028493,3]
[385305292,1757755923289,-500.7,0.00028493,3]
[385305293,1757755923299,-891.22,0.00028493,3]
[385305294,1757755923309,-1033.36,0.00028493,3]
[385305295,1757755923319,-534.4,0.00028493,3]
[385305296,1757755923328,-541.98,0.00028493,3]
[385305297,1757755923338,-977.05,0.00028493,3]
[385305298,1757755923347,-681.35,0.00028493,3]
[385305299,1757755923357,-480.0,0.00028493,3]
[385305300,1757755923367,-497.01573415,0.00028493,3]
[385305301,1757755923377,-480.0,0.00028493,3]
[385305302,1757755923386,-480.0,0.00028493,3]
[385305303,1757755923395,-579.86,0.00028493,3]
[385305304,1757755923405,-480.0,0.00028493,3]
[385305305,1757755923415,-6737.45,0.00028493,3]
[385305306,1757755923425,-2411.48,0.00028493,3]
[385305307,1757755923435,-4800.05,0.00028493,3]
[385305308,1757755923446,-480.0,0.00028493,3]
[385305309,1757755923456,-480.0,0.00028493,3]
[385305310,1757755923466,-1662.72,0.00028493,3]
[385305311,1757755923476,-836.54,0.00028493,3]
[385305312,1757755923485,-1708.68,0.00028493,3]
[385305313,1757755923496,-480.0,0.00028493,3]
[385305314,1757755923505,-619.88,0.00028493,3]
[385305315,1757755923515,-1393.21,0.00028493,3]
[385305316,1757755923525,-1863.52,0.00028493,3]
[385305317,1757755923535,-480.0,0.00028493,3]
[385305318,1757755923545,-1307.29,0.00028493,3]
[385305319,1757755923554,-480.0,0.00028493,3]
[385305320,1757755923565,-480.0,0.00028493,3]
[385305321,1757755923575,-528.66,0.00028493,3]
[385305322,1757755923585,-494.96,0.00028493,3]
[385305323,1757755923594,-1103.37,0.00028493,3]
[385305324,1757755923603,-518.27,0.00028493,3]
[385305325,1757755923613,-480.0,0.00028493,3]
[385305326,1757755923622,-516.82,0.00028493,3]
[385305327,1757755923632,-487.61,0.00028493,3]
[385305328,1757755923641,-832.35,0.00028493,3]
[385305329,1757755923651,-480.0,0.00028493,3]
[385305330,1757755923661,-480.0,0.00028493,3]
[385305331,1757755923671,-480.0,0.00028493,3]
[385305332,1757755923680,-1916.67,0.00028493,3]
[385305333,1757755923689,-659.4,0.00028493,3]
[385305334,1757755923698,-480.0,0.00028493,3]
[385305335,1757755923707,-480.0,0.00028493,3]
[385305336,1757755923717,-480.0,0.00028493,3]
[385305337,1757755923726,-480.0,0.00028493,3]
[385305338,1757755923735,-597.41,0.00028493,3]
[385305339,1757755923745,-480.0,0.00028493,3]
[385305340,1757755923754,-606.7,0.00028493,3]
[385305341,1757755923764,-3205.05,0.00028493,3]
[385305342,1757755923776,-480.0,0.00028493,3]
[385305343,1757755923786,-480.0,0.00028493,3]
[385305344,1757755923795,-480.0,0.00028493,3]
[385305345,1757755923805,-744.12,0.00028493,3]
[385305346,1757755923815,-1290.40870766,0.00028493,5]
[385305347,1757755923824,-500.0,0.00028494,2]
[385305348,1757755923834,-1157.45,0.000285,7]
[385305349,1757755923844,-1593.04414258,0.000285,7]
[385305350,1757755923855,-1485.0575856,0.00028518,2]
[385305351,1757755923865,-151.26,0.00028537,15]
[385305352,1757755923874,-154.6121,0.0002855,14]
[385305353,1757755923884,-500.0,0.00028569,2]
[385305354,1757755923893,-1121.43,0.00028571,15]
[385305355,1757755923902,-497.91355135,0.00028586,2]
[385305356,1757755923912,-260.81301056,0.00028606,2]
[385305357,1757755923921,-966.45,0.00028607,2]
[385305358,1757755923931,-500.0,0.0002861,2]
[385305359,1757755923941,-1485.0575856,0.00028618,2]
[385305360,1757755923950,-151.0,0.00028622,7]
[385305361,1757755923960,-151.26,0.00028637,15]
[385305362,1757755923978,-2869.46647421,0.00028643,10]
[385305363,1757755923995,-1121.43,0.00028671,15]
[385305364,1757755924012,-800.0,0.00028691,2]
[385305365,1757755924031,-151.0,0.000287,120]
[385305366,1757755924049,-800.0,0.00028705,2]
[385305367,1757755924066,-800.0,0.00028711,2]
[385305368,1757755924082,-1485.0575856,0.00028718,2]
[385305369,1757755924101,-3280.3046914,0.00028728,2]
[385305370,1757755924115,-151.26,0.00028737,15]
[385305371,1757755924132,-804.0,0.00028754,2]
[385305372,1757755924152,-200.0,0.00028755,120]
[385305373,1757755924171,-800.0,0.0002876,2]
[385305374,1757755924184,-4000.0,0.0002876,5]
[385305375,1757755924203,-154.6121,0.00028764,7]
[385305376,1757755924217,-1035.06,0.00028767,3]
[385305377,1757755924234,-480.0,0.00028767,3]
[385305378,1757755924247,-480.0,0.00028767,3]
[385305379,1757755924267,-480.0,0.00028767,3]
[385305380,1757755924282,-480.0,0.00028767,3]
[385305381,1757755924296,-480.0,0.00028767,3]
[385305382,1757755924311,-480.0,0.00028767,3]
[385305383,1757755924327,-480.0,0.00028767,3]
[385305384,1757755924343,-480.0,0.00028767,3]
[385305385,1757755924358,-480.0,0.00028767,3]
[385305386,1757755924372,-480.0,0.00028767,3]
[385305387,1757755924387,-328.27767239,0.00028767,3]
[385305388,1757755924400,-480.0,0.00028767,3]
[385305389,1757755924414,-480.0,0.00028767,3]
[385305390,1757755924428,-480.0,0.00028767,3]
[385305391,1757755924443,-480.0,0.00028767,3]
[385305392,1757755924458,-480.0,0.00028767,3]
[385305393,1757755924472,-480.0,0.00028767,3]
[385305394,1757755924486,-480.0,0.00028767,3]
[385305395,1757755924501,-480.0,0.00028767,3]
[385305396,1757755924515,-480.0,0.00028767,3]
[385305397,1757755924529,-480.0,0.00028767,3]
[385305398,1757755924543,-409.60182059,0.00028767,3]
[385305399,1757755924556,-480.0,0.00028767,3]
[385305400,1757755924569,-480.0,0.00028767,3]
[385305401,1757755924583,-480.0,0.00028767,3]
[385305402,1757755924596,-499.1,0.00028767,3]
[385305403,1757755924608,-480.69,0.00028767,3]
[385305404,1757755924621,-480.0,0.00028767,3]
[385305405,1757755924636,-507.79468416,0.00028767,3]
[385305406,1757755924650,-480.0,0.00028767,3]
[385305407,1757755924664,-519.58,0.00028767,3]
[385305408,1757755924677,-619.65,0.00028767,3]
[385305409,1757755924690,-480.0,0.00028767,3]
[385305410,1757755924705,-587.99,0.00028767,3]
[385305411,1757755924719,-480.0,0.00028767,3]
[385305412,1757755924734,-523.11,0.00028767,3]
[385305413,1757755924747,-653.04,0.00028767,3]
[385305414,1757755924761,-687.36,0.00028767,3]
[385305415,1757755924775,-480.0,0.00028767,3]
[385305416,1757755924789,-484.0,0.00028767,3]
[385305417,1757755924802,-480.0,0.00028767,3]
[385305418,1757755924816,-523.39,0.00028767,3]
[385305419,1757755924829,-480.0,0.00028767,3]
[385305420,1757755924843,-509.39,0.00028767,3]
[385305421,1757755924856,-480.0,0.00028767,3]
[385305422,1757755924870,-480.0,0.00028767,3]
[385305423,1757755924885,-480.0,0.00028767,3]
[385305424,1757755924899,-480.0,0.00028767,3]
[385305425,1757755924913,-480.0,0.00028767,3]
[385305426,1757755924927,-575.62064916,0.00028767,3]
[385305427,1757755924942,-480.0,0.00028767,3]
[385305428,1757755924956,-480.0,0.00028767,3]
[385305429,1757755924970,-1336.28,0.00028767,3]
[385305430,1757755924984,-480.0,0.00028767,3]
[385305431,1757755924997,-480.0,0.00028767,3]
[385305432,1757755925012,-480.0,0.00028767,3]
[385305433,1757755925027,-480.0,0.00028767,3]
[385305434,1757755925042,-501.62,0.00028767,3]
[385305435,1757755925056,-480.0,0.00028767,3]
[385305436,1757755925071,-514.0,0.00028767,3]